fUSD/lending_fUSD_20250407
["ID","MTS","AMOUNT","RATE_DAILY","PERIOD"]
[357311452,1744004371514,-151.91,0.0002,2]
[357311453,1744004371577,-151.91,0.0002,2]
[357311454,1744004371640,-151.91,0.0002,2]
[357311455,1744004371705,-151.91,0.0002,2]
[357311456,1744004371769,-151.91,0.0002,2]
[357311457,1744004371825,-151.0,0.0002,2]
[357311458,1744004371882,-151.0,0.0002,2]
[357311459,1744004371935,-151.0,0.0002,2]
[357311460,1744004371992,-151.0,0.0002,2]
[357311461,1744004372052,-151.0,0.0002,2]
[357311462,1744004372303,-151.0,0.0002,2]
[357311463,1744004372370,-151.0,0.0002,2]
[357311464,1744004372438,-151.0,0.0002,2]
[357311465,1744004372502,-151.0,0.0002,2]
[357311466,1744004372567,-151.0,0.0002,2]
[357311467,1744004372631,-151.0,0.0002,2]
[357311468,1744004372696,-151.0,0.0002,2]
[357311469,1744004372764,-151.0,0.0002,2]
[357311470,1744004372824,-151.0,0.0002,2]
[357311471,1744004372887,-343.626546,0.0002,2]
[357311472,1744004372948,-343.626546,0.0002,2]
[357311473,1744004373006,-151.0,0.0002,2]
[357311474,1744004373070,-4532.779028,0.0002,2]
[357311475,1744004373136,-4532.779028,0.0002,2]
[357311476,1744004373199,-1446.0568846,0.00020107,2]
[357311477,1744004373261,-4576.5041338,0.00020121,2]
[357311478,1744004373324,-170.67,0.00020135,2]
[357311479,1744004373389,-16296.07,0.00020145,2]
[357311480,1744004373452,-171.88,0.00020332,2]
[357311481,1744004373515,-314.05,0.00020479,2]
[357311482,1744004373578,-574.0,0.00020479,2]
[357311483,1744004373646,-1292.362,0.00020479,2]
[357311484,1744004373712,-3997.025,0.00020479,2]
[357311485,1744004373776,-153.179,0.00020479,2]
[357311486,1744004373841,-374.344,0.00020479,2]
[357311487,1744004373906,-790.0,0.00020479,2]
[357311488,1744004373973,-1282.648,0.00020479,2]
[357311489,1744004374041,-908.0,0.00020479,2]
[357311490,1744004374111,-4164.623,0.00020479,2]
[357311491,1744004374175,-547.279,0.00020479,2]
[357311492,1744004374240,-814.24469918,0.00020662,2]
[357311493,1744004374302,-190.70476731,0.00021,2]
[357311494,1744004374363,-300.0,0.00021,2]
[357311495,1744004374427,-250.0,0.00021232,2]
[357311496,1744004374490,-1000.0,0.00021311,2]
[357311497,1744004374553,-170.67,0.00021409,2]
[357311498,1744004374612,-171.88,0.00021451,2]
[357311499,1744004374673,-200.0,0.0002147,7]
[357311500,1744004374735,-785.03,0.00021535,2]
[357311501,1744004374797,-173.66,0.00021655,2]
[357311502,1744004374863,-500.0,0.00021904,2]
[357311503,1744004374927,-342.4614645,0.00021904,2]
[357311504,1744004374986,-150.0,0.00021917,2]
[357311505,1744004375044,-200.82081097,0.00021918,7]
[357311506,1744004375102,-171.88,0.0002257,2]
[357311507,1744004375157,-200.0,0.00023,2]
[357311508,1744004375215,-350.0,0.00023,2]
[357311509,1744004375255,-170.67,0.00023041,2]
[357311510,1744004375294,-150.0,0.00023287,2]
[357311511,1744004375330,-431.822,0.00023479,2]
[357311512,1744004375367,-3956.0,0.00023479,2]
[357311513,1744004375403,-151.0,0.00023479,2]
[357311514,1744004375439,-790.0,0.00023479,2]
[357311515,1744004375476,-908.0,0.00023479,2]
[357311516,1744004375512,-544.0,0.00023479,2]
[357311517,1744004375551,-151.0,0.00023479,7]
[357311518,1744004375587,-151.0,0.00023479,7]
[357311519,1744004375624,-151.0,0.00023479,7]
[357311520,1744004375663,-151.0,0.00023479,7]
[357311521,1744004375704,-151.0,0.00023479,7]
[357311522,1744004375743,-151.0,0.00023479,7]
[357311523,1744004375780,-151.0,0.00023479,7]
[357311524,1744004375816,-151.0,0.00023479,7]
[357311525,1744004375850,-151.0,0.00023479,7]
[357311526,1744004375884,-151.0,0.00023479,7]
[357311527,1744004375918,-151.0,0.00023479,7]
[357311528,1744004375953,-151.0,0.00023479,7]
[357311529,1744004375986,-151.0,0.00023479,7]
[357311530,1744004376022,-151.0,0.00023479,7]
[357311531,1744004376057,-151.0,0.00023479,7]
[357311532,1744004376091,-225.100932,0.00023479,7]
[357311533,1744004376126,-151.0,0.00023479,7]
[357311534,1744004376162,-151.0,0.00023479,7]
[357311535,1744004376200,-151.0,0.00023479,7]
[357311536,1744004376236,-151.0,0.00023479,7]
[357311537,1744004376275,-343.626546,0.00023479,7]
[357311538,1744004376313,-343.626546,0.00023479,7]
[357311539,1744004376350,-151.0,0.00023479,7]
[357311540,1744004376389,-4532.779028,0.00023479,7]
[357311541,1744004376427,-4532.779028,0.00023479,7]
[357311542,1744004376465,-150.0,0.00023639,2]
[357311543,1744004376503,-194.0,0.00023639,2]
[357311544,1744004376542,-185.763,0.00023639,2]
[357311545,1744004376580,-164.806,0.00023639,2]
[357311546,1744004376618,-172.329,0.00023639,2]
[357311547,1744004376657,-250.0,0.00023639,2]
[357311548,1744004376696,-215.081,0.00023639,2]
[357311549,1744004376733,-150.877,0.00023639,2]
[357311550,1744004376770,-156.194,0.00023639,2]
[357311551,1744004376806,-171.88,0.00023688,2]
[357311552,1744004376842,-785.03,0.00023799,2]
[357311553,1744004376879,-274.88,0.00023836,2]
[357311554,1744004376915,-1000.0,0.00023975,2]
[357311555,1744004377121,-151.0,0.00024,7]
[357311556,1744004377160,-151.0,0.00024,7]
[357311557,1744004377198,-151.0,0.00024,7]
[357311558,1744004377234,-151.0,0.00024,7]
[357311559,1744004377273,-150.0,0.00024657,2]
[357311560,1744004377472,1962.41597066,0.000199,2]
[357311561,1744004379070,10876.83050399,0.000199,2]
[357311562,1744004379261,645.0,0.00019899,2]
[357311563,1744004379331,150.0,0.0002,2]
[357311564,1744004379654,500.0,0.00019973,2]
[357311565,1744004379956,565.92019696,0.0002,2]
[357311566,1744004380147,150.0,0.0002,2]
[357311567,1744004380205,1405.5238,0.000199,2]
[357311568,1744004380534,2500.0,0.000199,2]
[357311569,1744004380955,150.0,0.0002,2]
[357311570,1744004381285,23900.0,0.00021722,2]
[357311571,1744004381619,828.09596513,0.0002,2]
[357311572,1744004392598,-150.5,0.0004107,120]
[357311573,1744004392642,-150.5,0.0004108,120]
[357311574,1744004392679,-150.5,0.0004109,120]
[357311575,1744004392728,-856.26,0.00049315,120]
[357311576,1744004392765,-500.0,0.00049315,120]
[357311577,1744004392801,-928.0,0.00049315,120]
[357311578,1744004392838,-500.0,0.00049315,120]
[357311579,1744004392874,-500.0,0.00049315,120]
[357311580,1744004392911,-500.0,0.00049315,120]
[357311581,1744004392947,-500.0,0.00049315,120]
[357311582,1744004392981,-1294.2,0.00049315,120]
[357311583,1744004393016,-500.0,0.00049315,120]
[357311584,1744004393054,-500.0,0.00049315,120]
[357311585,1744004393091,-507.74370716,0.00049315,120]
[357311586,1744004393129,-500.0,0.00049315,120]
[357311587,1744004393168,-500.0,0.00049315,120]
[357311588,1744004393204,-1159.13,0.00049315,120]
[357311589,1744004393241,-500.0,0.00049315,120]
[357311590,1744004393278,-500.0,0.00049315,120]
[357311591,1744004393320,-500.0,0.00049315,120]
[357311592,1744004393356,-3054.48,0.00049315,30]
[357311593,1744004393393,-500.0,0.00049315,120]
[357311594,1744004393432,-500.0,0.00049315,120]
[357311595,1744004393472,-500.0,0.00049315,120]
[357311596,1744004393509,-500.0,0.00049315,120]
[357311597,1744004393546,-500.0,0.00049315,120]
[357311598,1744004393583,-639.89,0.00049315,120]
[357311599,1744004393618,-500.0,0.00049315,120]
[357311600,1744004393654,-516.03,0.00049315,120]
[357311601,1744004393690,-539.1,0.00049315,120]
[357311602,1744004393727,-501.23,0.00049315,120]
[357311603,1744004393762,-500.0,0.00049315,120]
[357311604,1744004393798,-715.45,0.00049315,120]
[357311605,1744004393833,-500.0,0.00049315,120]
[357311606,1744004393869,-2579.14,0.00049315,120]
[357311607,1744004393908,-500.0,0.00049315,120]
[357311608,1744004393943,-500.0,0.00049315,120]
[357311609,1744004393978,-810.85,0.00049315,120]
[357311610,1744004394018,-500.0,0.00049315,120]
[357311611,1744004394308,-500.0,0.00049315,120]
[357311612,1744004394348,-500.0,0.00049315,120]
[357311613,1744004394386,-1565.11,0.00049315,120]
[357311614,1744004394424,-255.8308879,0.00049315,120]
[357311615,1744004394463,-816.18,0.00049315,120]
[357311616,1744004394500,-500.0,0.00049315,120]
[357311617,1744004394542,-764.77,0.00049315,120]
[357311618,1744004394594,-500.0,0.00049315,120]
[357311619,1744004394634,-500.0,0.00049315,120]
[357311620,1744004394673,-500.0,0.00049315,120]
[357311621,1744004394714,-529.21,0.00049315,120]
[357311622,1744004394762,-500.0,0.00049315,120]
[357311623,1744004394802,-581.73,0.00049315,120]
[357311624,1744004394840,-500.0,0.00049315,120]
[357311625,1744004394878,-500.0,0.00049315,120]
[357311626,1744004394915,-500.0,0.00049315,120]
[357311627,1744004394954,-500.0,0.00049315,120]
[357311628,1744004394993,-500.0,0.00049315,120]
[357311629,1744004395034,-500.0,0.00049315,120]
[357311630,1744004395072,-500.0,0.00049315,120]
[357311631,1744004395108,-500.0,0.00049315,120]
[357311632,1744004395147,-500.0,0.00049315,120]
[357311633,1744004395188,-500.0,0.00049315,120]
[357311634,1744004395230,-500.0,0.00049315,120]
[357311635,1744004395271,-500.0,0.00049315,120]
[357311636,1744004395315,-992.47,0.00049315,120]
[357311637,1744004395358,-711.71,0.00049315,120]
[357311638,1744004395400,-516.82,0.00049315,120]
[357311639,1744004395439,-500.0,0.00049315,120]
[357311640,1744004395477,-671.8,0.00049315,120]
[357311641,1744004395515,-500.0,0.00049315,120]
[357311642,1744004395554,-500.0,0.00049315,120]
[357311643,1744004395592,-500.0,0.00049315,120]
[357311644,1744004395629,-1772.83,0.00049315,120]
[357311645,1744004395667,-500.0,0.00049315,120]
[357311646,1744004395704,-500.0,0.00049315,120]
[357311647,1744004395751,-500.0,0.00049315,120]
[357311648,1744004395793,-500.0,0.00049315,120]
[357311649,1744004395832,-500.0,0.00049315,120]
[357311650,1744004395869,-1054.58,0.00049315,120]
[357311651,1744004395907,-706.62,0.00049315,120]
[357311652,1744004395946,-1150.94,0.00049315,120]
[357311653,1744004395987,-500.0,0.00049315,120]
[357311654,1744004396036,-585.448204,0.00049547,120]
[357311655,1744004396076,-585.448204,0.00049547,120]
[357311656,1744004396118,-856.26,0.00049589,120]
[357311657,1744004396162,-500.0,0.00049589,120]
[357311658,1744004396207,-928.0,0.00049589,120]
[357311659,1744004396248,-500.0,0.00049589,120]
[357311660,1744004396292,-500.0,0.00049589,120]
[357311661,1744004396333,-500.0,0.00049589,120]
[357311662,1744004396373,-500.0,0.00049589,120]
[357311663,1744004396418,-1294.2,0.00049589,120]
[357311664,1744004396459,-500.0,0.00049589,120]
[357311665,1744004396500,-500.0,0.00049589,120]
[357311666,1744004396541,-585.448204,0.00049589,120]
[357311667,1744004396580,-500.0,0.00049589,120]
[357311668,1744004396617,-1159.13,0.00049589,120]
[357311669,1744004396654,-500.0,0.00049589,120]
[357311670,1744004396690,-500.0,0.00049589,120]
[357311671,1744004396727,-500.0,0.00049589,120]
[357311672,1744004396761,-585.448202,0.00049589,120]
[357311673,1744004396796,-3054.48,0.00049589,30]
[357311674,1744004396832,-500.0,0.00049589,120]
[357311675,1744004396867,-500.0,0.00049589,120]
[357311676,1744004396904,-500.0,0.00049589,120]
[357311677,1744004396939,-500.0,0.00049589,120]
[357311678,1744004396975,-500.0,0.00049589,120]
[357311679,1744004397009,-639.89,0.00049589,120]
[357311680,1744004397043,-500.0,0.00049589,120]
[357311681,1744004397079,-516.03,0.00049589,120]
[357311682,1744004397113,-539.1,0.00049589,120]
[357311683,1744004397149,-501.23,0.00049589,120]
[357311684,1744004397184,-500.0,0.00049589,120]
[357311685,1744004397220,-715.45,0.00049589,120]
[357311686,1744004397255,-500.0,0.00049589,120]
[357311687,1744004397291,-2579.14,0.00049589,120]
[357311688,1744004397329,-500.0,0.00049589,120]
[357311689,1744004397365,-500.0,0.00049589,120]
[357311690,1744004397403,-810.85,0.00049589,120]
[357311691,1744004397441,-500.0,0.00049589,120]
[357311692,1744004397479,-500.0,0.00049589,120]
[357311693,1744004397514,-500.0,0.00049589,120]
[357311694,1744004397549,-1565.11,0.00049589,120]
[357311695,1744004397584,-816.18,0.00049589,120]
[357311696,1744004397619,-500.0,0.00049589,120]
[357311697,1744004397652,-764.77,0.00049589,120]
[357311698,1744004397687,-610.80725418,0.00049589,120]
[357311699,1744004397722,-500.0,0.00049589,120]
[357311700,1744004397757,-500.0,0.00049589,120]
[357311701,1744004397793,-529.21,0.00049589,120]
[357311702,1744004397829,-500.0,0.00049589,120]
[357311703,1744004397864,-581.73,0.00049589,120]
[357311704,1744004398108,-500.0,0.00049589,120]
[357311705,1744004398147,-500.0,0.00049589,120]
[357311706,1744004398186,-500.0,0.00049589,120]
[357311707,1744004398225,-500.0,0.00049589,120]
[357311708,1744004398263,-500.0,0.00049589,120]
[357311709,1744004398303,-500.0,0.00049589,120]
[357311710,1744004398340,-500.0,0.00049589,120]
[357311711,1744004398379,-500.0,0.00049589,120]
[357311712,1744004398417,-500.0,0.00049589,120]
[357311713,1744004398454,-500.0,0.00049589,120]
[357311714,1744004398490,-500.0,0.00049589,120]
[357311715,1744004398524,-500.0,0.00049589,120]
[357311716,1744004398560,-992.47,0.00049589,120]
[357311717,1744004398596,-711.71,0.00049589,120]
[357311718,1744004398635,-516.82,0.00049589,120]
[357311719,1744004398670,-500.0,0.00049589,120]
[357311720,1744004398707,-671.8,0.00049589,120]
[357311721,1744004398746,-500.0,0.00049589,120]
[357311722,1744004398782,-500.0,0.00049589,120]
[357311723,1744004398822,-500.0,0.00049589,120]
[357311724,1744004398857,-1772.83,0.00049589,120]
[357311725,1744004398891,-500.0,0.00049589,120]
[357311726,1744004398926,-500.0,0.00049589,120]
[357311727,1744004398960,-500.0,0.00049589,120]
[357311728,1744004398995,-500.0,0.00049589,120]
[357311729,1744004399029,-500.0,0.00049589,120]
[357311730,1744004399066,-1054.58,0.00049589,120]
[357311731,1744004399101,-706.62,0.00049589,120]
[357311732,1744004399138,-1150.94,0.00049589,120]
[357311733,1744004399174,-500.0,0.00049589,120]
[357311734,1744004399212,-856.26,0.00049863,120]
[357311735,1744004399248,-500.0,0.00049863,120]
[357311736,1744004399285,-928.0,0.00049863,120]
[357311737,1744004399323,-500.0,0.00049863,120]
[357311738,1744004399361,-500.0,0.00049863,120]
[357311739,1744004399400,-500.0,0.00049863,120]
[357311740,1744004399438,-500.0,0.00049863,120]
[357311741,1744004399475,-1294.2,0.00049863,120]
[357311742,1744004399512,-500.0,0.00049863,120]
[357311743,1744004399550,-500.0,0.00049863,120]
[357311744,1744004399589,-500.0,0.00049863,120]
[357311745,1744004399629,-1159.13,0.00049863,120]
[357311746,1744004399669,-500.0,0.00049863,120]
[357311747,1744004399710,-270.72,0.00049863,120]
[357311748,1744004399754,-500.0,0.00049863,120]
[357311749,1744004399796,-3054.48,0.00049863,30]
[357311750,1744004399836,-500.0,0.00049863,120]
[357311751,1744004399879,-500.0,0.00049863,120]
[357311752,1744004399918,-500.0,0.00049863,120]
[357311753,1744004399956,-151.0,0.00049863,120]
[357311754,1744004399994,-151.0,0.00049863,120]
[357311755,1744004400034,-500.0,0.00049863,120]
[357311756,1744004400075,-151.0,0.00049863,120]
[357311757,1744004400112,-226.95306,0.00049863,120]
[357311758,1744004400151,-500.0,0.00049863,120]
[357311759,1744004400190,-639.89,0.00049863,120]
[357311760,1744004400234,-500.0,0.00049863,120]
[357311761,1744004400274,-516.03,0.00049863,120]
[357311762,1744004400312,-539.1,0.00049863,120]
[357311763,1744004400351,-501.23,0.00049863,120]
[357311764,1744004400391,-500.0,0.00049863,120]
[357311765,1744004400436,-715.45,0.00049863,120]
[357311766,1744004400478,-500.0,0.00049863,120]
[357311767,1744004400517,-2579.14,0.00049863,120]
[357311768,1744004400558,-500.0,0.00049863,120]
[357311769,1744004400599,-500.0,0.00049863,120]
[357311770,1744004400640,-810.85,0.00049863,120]
[357311771,1744004400682,-500.0,0.00049863,120]
[357311772,1744004400724,-151.0,0.00049863,120]
[357311773,1744004400763,-151.0,0.00049863,120]
[357311774,1744004400803,-500.0,0.00049863,120]
[357311775,1744004400841,-500.0,0.00049863,120]
[357311776,1744004400879,-1565.11,0.00049863,120]
[357311777,1744004400919,-816.18,0.00049863,120]
[357311778,1744004400956,-500.0,0.00049863,120]
[357311779,1744004400994,-764.77,0.00049863,120]
[357311780,1744004401030,-156.44199166,0.00049863,120]
[357311781,1744004401069,-500.0,0.00049863,120]
[357311782,1744004401108,-529.21,0.00049863,120]
[357311783,1744004401146,-500.0,0.00049863,120]
[357311784,1744004401183,-581.73,0.00049863,120]
[357311785,1744004401219,-381.0186544,0.00049863,120]
[357311786,1744004401256,-500.0,0.00049863,120]
[357311787,1744004401296,-500.0,0.00049863,120]
[357311788,1744004401335,-500.0,0.00049863,120]
[357311789,1744004401372,-632.08910777,0.00049863,120]
[357311790,1744004401409,-500.0,0.00049863,120]
[357311791,1744004401445,-500.0,0.00049863,120]
[357311792,1744004401482,-500.0,0.00049863,120]
[357311793,1744004401518,-500.0,0.00049863,120]
[357311794,1744004401555,-500.0,0.00049863,120]
[357311795,1744004401599,-500.0,0.00049863,120]
[357311796,1744004401638,-500.0,0.00049863,120]
[357311797,1744004401677,-992.47,0.00049863,120]
[357311798,1744004401718,-516.82,0.00049863,120]
[357311799,1744004401906,-711.71,0.00049863,120]
[357311800,1744004401946,-500.0,0.00049863,120]
[357311801,1744004401985,-671.8,0.00049863,120]
[357311802,1744004402027,-500.0,0.00049863,120]
[357311803,1744004402068,-500.0,0.00049863,120]
[357311804,1744004402108,-500.0,0.00049863,120]
[357311805,1744004402149,-1772.83,0.00049863,120]
[357311806,1744004402189,-521.6556431,0.00049863,120]
[357311807,1744004402228,-500.0,0.00049863,120]
[357311808,1744004402267,-500.0,0.00049863,120]
[357311809,1744004402306,-500.0,0.00049863,120]
[357311810,1744004402344,-500.0,0.00049863,120]
[357311811,1744004402382,-1054.58,0.00049863,120]
[357311812,1744004402422,-706.62,0.00049863,120]
[357311813,1744004402466,-1150.94,0.00049863,120]
[357311814,1744004402510,-500.0,0.00049863,120]
[357311815,1744004402561,-856.26,0.00050136,120]
[357311816,1744004402605,-500.0,0.00050136,120]
[357311817,1744004402648,-928.0,0.00050136,120]
[357311818,1744004402689,-477.5866365,0.00050136,120]
[357311819,1744004402728,-500.0,0.00050136,120]
[357311820,1744004402766,-500.0,0.00050136,120]
[357311821,1744004402805,-500.0,0.00050136,120]
[357311822,1744004402843,-1294.2,0.00050136,120]
[357311823,1744004402887,-500.0,0.00050136,120]
[357311824,1744004402924,-278.61878474,0.00050136,120]
[357311825,1744004402962,-500.0,0.00050136,120]
[357311826,1744004402998,-1159.13,0.00050136,120]
[357311827,1744004403039,-500.0,0.00050136,120]
[357311828,1744004403083,-500.0,0.00050136,120]
[357311829,1744004403125,-3054.48,0.00050136,30]
[357311830,1744004403168,-500.0,0.00050136,120]
[357311831,1744004403212,-500.0,0.00050136,120]
[357311832,1744004403256,-500.0,0.00050136,120]
[357311833,1744004403303,-151.0,0.00050136,120]
[357311834,1744004403346,-151.0,0.00050136,120]
[357311835,1744004403390,-500.0,0.00050136,120]
[357311836,1744004403435,-500.0,0.00050136,120]
[357311837,1744004403477,-639.89,0.00050136,120]
[357311838,1744004403520,-500.0,0.00050136,120]
[357311839,1744004403563,-516.03,0.00050136,120]
[357311840,1744004403609,-539.1,0.00050136,120]
[357311841,1744004403656,-501.23,0.00050136,120]
[357311842,1744004403707,-715.45,0.00050136,120]
[357311843,1744004403754,-500.0,0.00050136,120]
[357311844,1744004403802,-500.0,0.00050136,120]
[357311845,1744004403847,-2579.14,0.00050136,120]
[357311846,1744004403895,-500.0,0.00050136,120]
[357311847,1744004403940,-500.0,0.00050136,120]
[357311848,1744004403983,-810.85,0.00050136,120]
[357311849,1744004404024,-500.0,0.00050136,120]
[357311850,1744004404068,-151.0,0.00050136,120]
[357311851,1744004404113,-500.0,0.00050136,120]
[357311852,1744004404158,-151.0,0.00050136,120]
[357311853,1744004404202,-500.0,0.00050136,120]
[357311854,1744004404246,-1565.11,0.00050136,120]
[357311855,1744004404291,-816.18,0.00050136,120]
[357311856,1744004404337,-500.0,0.00050136,120]
[357311857,1744004404380,-764.77,0.00050136,120]
[357311858,1744004404427,-500.0,0.00050136,120]
[357311859,1744004404472,-529.21,0.00050136,120]
[357311860,1744004404527,-500.0,0.00050136,120]
[357311861,1744004404583,-581.73,0.00050136,120]
[357311862,1744004404631,-500.0,0.00050136,120]
[357311863,1744004404674,-500.0,0.00050136,120]
[357311864,1744004404736,-500.0,0.00050136,120]
[357311865,1744004404802,-500.0,0.00050136,120]
[357311866,1744004404844,-500.0,0.00050136,120]
[357311867,1744004404895,-498.60135721,0.00050136,120]
[357311868,1744004404938,-500.0,0.00050136,120]
[357311869,1744004404980,-500.0,0.00050136,120]
[357311870,1744004405024,-500.0,0.00050136,120]
[357311871,1744004405069,-500.0,0.00050136,120]
[357311872,1744004405115,-992.47,0.00050136,120]
[357311873,1744004405161,-516.82,0.00050136,120]
[357311874,1744004405203,-711.71,0.00050136,120]
[357311875,1744004405245,-500.0,0.00050136,120]
[357311876,1744004405289,-671.8,0.00050136,120]
[357311877,1744004405336,-500.0,0.00050136,120]
[357311878,1744004405377,-500.0,0.00050136,120]
[357311879,1744004405416,-500.0,0.00050136,120]
[357311880,1744004405454,-1772.83,0.00050136,120]
[357311881,1744004405496,-500.0,0.00050136,120]
[357311882,1744004405539,-340.4,0.00050136,120]
[357311883,1744004405584,-500.0,0.00050136,120]
[357311884,1744004405625,-500.0,0.00050136,120]
[357311885,1744004405668,-1054.58,0.00050136,120]
[357311886,1744004405713,-706.62,0.00050136,120]
[357311887,1744004405761,-1150.94,0.00050136,120]
[357311888,1744004405813,-500.0,0.00050136,120]
[357311889,1744004405859,-856.26,0.0005041,120]
[357311890,1744004405901,-500.0,0.0005041,120]
[357311891,1744004405944,-928.0,0.0005041,120]
[357311892,1744004405986,-500.0,0.0005041,120]
[357311893,1744004406029,-500.0,0.0005041,120]
[357311894,1744004406262,-500.0,0.0005041,120]
[357311895,1744004406304,-1294.2,0.0005041,120]
[357311896,1744004406345,-500.0,0.0005041,120]
[357311897,1744004406386,-500.0,0.0005041,120]
[357311898,1744004406428,-1159.13,0.0005041,120]
[357311899,1744004406473,-500.0,0.0005041,120]
[357311900,1744004406514,-500.0,0.0005041,120]
[357311901,1744004406556,-3054.48,0.0005041,30]
[357311902,1744004406596,-500.0,0.0005041,120]
[357311903,1744004406638,-500.0,0.0005041,120]
[357311904,1744004406679,-500.0,0.0005041,120]
[357311905,1744004406722,-151.0,0.0005041,120]
[357311906,1744004406768,-500.0,0.0005041,120]
[357311907,1744004406811,-500.0,0.0005041,120]
[357311908,1744004406854,-639.89,0.0005041,120]
[357311909,1744004406899,-500.0,0.0005041,120]
[357311910,1744004406945,-516.03,0.0005041,120]
[357311911,1744004406990,-539.1,0.0005041,120]
[357311912,1744004407034,-501.23,0.0005041,120]
[357311913,1744004407085,-715.45,0.0005041,120]
[357311914,1744004407130,-500.0,0.0005041,120]
[357311915,1744004407172,-500.0,0.0005041,120]
[357311916,1744004407251,-2579.14,0.0005041,120]
[357311917,1744004407338,-500.0,0.0005041,120]
[357311918,1744004407411,-500.0,0.0005041,120]
[357311919,1744004407467,-810.85,0.0005041,120]
[357311920,1744004407528,-500.0,0.0005041,120]
[357311921,1744004407616,-500.0,0.0005041,120]
[357311922,1744004407663,-165.08618,0.0005041,120]
[357311923,1744004407714,-500.0,0.0005041,120]
[357311924,1744004407768,-1565.11,0.0005041,120]
[357311925,1744004407824,-816.18,0.0005041,120]
[357311926,1744004407871,-500.0,0.0005041,120]
[357311927,1744004407946,-764.77,0.0005041,120]
[357311928,1744004408003,-500.0,0.0005041,120]
[357311929,1744004408050,-529.21,0.0005041,120]
[357311930,1744004408094,-500.0,0.0005041,120]
[357311931,1744004408136,-581.73,0.0005041,120]
[357311932,1744004408179,-500.0,0.0005041,120]
[357311933,1744004408228,-500.0,0.0005041,120]
[357311934,1744004408272,-500.0,0.0005041,120]
[357311935,1744004408314,-551.17837047,0.0005041,120]
[357311936,1744004408356,-500.0,0.0005041,120]
[357311937,1744004408398,-500.0,0.0005041,120]
[357311938,1744004408440,-500.0,0.0005041,120]
[357311939,1744004408483,-500.0,0.0005041,120]
[357311940,1744004408524,-500.0,0.0005041,120]
[357311941,1744004408565,-992.47,0.0005041,120]
[357311942,1744004408605,-711.71,0.0005041,120]
[357311943,1744004408646,-516.82,0.0005041,120]
[357311944,1744004408685,-500.0,0.0005041,120]
[357311945,1744004408730,-671.8,0.0005041,120]
[357311946,1744004408772,-500.0,0.0005041,120]
[357311947,1744004408812,-500.0,0.0005041,120]
[357311948,1744004408854,-500.0,0.0005041,120]
[357311949,1744004408894,-1772.83,0.0005041,120]
[357311950,1744004408934,-500.0,0.0005041,120]
[357311951,1744004408975,-500.0,0.0005041,120]